fUSD/lending_fUSD_20240502
["ID","MTS","AMOUNT","RATE_DAILY","PERIOD"]
[325247178,1714647049239,-151.0,0.000137,2]
[325247179,1714647049249,-151.0,0.000137,2]
[325247180,1714647049258,-151.0,0.000137,2]
[325247181,1714647049271,-4137.600571,0.000137,2]
[325247182,1714647049280,-151.0,0.000137,2]
[325247183,1714647049289,-4137.600571,0.000137,2]
[325247184,1714647049299,-151.0,0.000137,2]
[325247185,1714647049309,-151.0,0.000137,2]
[325247186,1714647049318,-222.449554,0.000137,2]
[325247187,1714647049328,-222.449554,0.000137,2]
[325247188,1714647049337,-239.205349,0.000137,2]
[325247189,1714647049347,-1583.079521,0.000137,2]
[325247190,1714647049356,-1583.079521,0.000137,2]
[325247191,1714647049366,-257.072449,0.000137,2]
[325247192,1714647049375,-154.147037,0.000137,2]
[325247193,1714647049394,-151.0,0.000137,2]
[325247194,1714647049414,-151.0,0.000137,2]
[325247195,1714647049432,-263.269293,0.000137,2]
[325247196,1714647049455,-1043.81,0.00013747,2]
[325247197,1714647049476,-151.0,0.00013747,2]
[325247198,1714647049497,-1000.0,0.000138,3]
[325247199,1714647049513,-214.23880024,0.00014,2]
[325247200,1714647049532,-150.0,0.00014149,3]
[325247201,1714647049552,-152.0,0.00014371,3]
[325247202,1714647049574,-717.0,0.000145,3]
[325247203,1714647049587,-152.45,0.00014514,2]
[325247204,1714647049605,-150.0,0.00014604,2]
[325247205,1714647049621,-592.34,0.00014684,2]
[325247206,1714647049640,-301.08,0.00014767,2]
[325247207,1714647049657,-154.8064802,0.0001479,2]
[325247208,1714647049672,-1000.0,0.000148,3]
[325247209,1714647049688,-152.0,0.00014857,4]
[325247210,1714647049705,-150.0,0.00014908,2]
[325247211,1714647049720,-198.04,0.00014972,2]
[325247212,1714647049734,-474.6350465,0.0001499,2]
[325247213,1714647049751,-617.71050029,0.00015,2]
[325247214,1714647049772,-40028.69641554,0.00015,2]
[325247215,1714647049788,-479.0,0.00015,2]
[325247216,1714647049804,-155.0,0.00015,2]
[325247217,1714647049821,-7278.0,0.00015,2]
[325247218,1714647049837,-1230.0,0.00015,2]
[325247219,1714647049854,-273.598362,0.00015,2]
[325247220,1714647049870,-273.598362,0.00015,2]
[325247221,1714647049885,-151.0,0.00015,2]
[325247222,1714647049900,-598.41,0.00015036,2]
[325247223,1714647049915,-5783.18231876,0.000151,2]
[325247224,1714647049930,-150.0,0.00015219,2]
[325247225,1714647049945,-152.0,0.00015343,5]
[325247226,1714647049960,-151.0,0.00015349,2]
[325247227,1714647049975,-151.0,0.00015349,2]
[325247228,1714647049991,-151.0,0.00015349,2]
[325247229,1714647050007,-151.0,0.00015349,2]
[325247230,1714647050024,-4137.600571,0.00015349,2]
[325247231,1714647050039,-151.0,0.00015349,2]
[325247232,1714647050055,-4137.600571,0.00015349,2]
[325247233,1714647050071,-151.0,0.00015349,2]
[325247234,1714647050088,-151.0,0.00015349,2]
[325247235,1714647050104,-222.449554,0.00015349,2]
[325247236,1714647050120,-222.449554,0.00015349,2]
[325247237,1714647050136,-1583.079521,0.00015349,2]
[325247238,1714647050151,-1583.079521,0.00015349,2]
[325247239,1714647050167,-151.0,0.00015349,2]
[325247240,1714647050182,-151.0,0.00015349,2]
[325247241,1714647050197,-9354.23754122,0.00015349,2]
[325247242,1714647050213,-150.0,0.00015499,5]
[325247243,1714647050228,-300.38243865,0.000155,2]
[325247244,1714647050245,-150.0,0.00015536,2]
[325247245,1714647050261,-1000.0,0.000158,4]
[325247246,1714647050280,-152.0,0.00015828,6]
[325247247,1714647050295,-1000.0,0.000159,4]
[325247248,1714647050312,-152.45,0.00015965,2]
[325247249,1714647050328,-64077.37005324,0.00016,2]
[325247250,1714647050344,-273.598362,0.00016,2]
[325247251,1714647050361,-273.598362,0.00016,2]
[325247252,1714647050377,-151.0,0.00016,2]
[325247253,1714647050392,-151.0,0.00016,2]
[325247254,1714647050408,-151.0,0.00016,2]
[325247255,1714647050424,-151.0,0.00016,2]
[325247256,1714647050439,-151.0,0.00016,2]
[325247257,1714647050454,-151.0,0.00016,2]
[325247258,1714647050470,-4137.600571,0.00016,2]
[325247259,1714647050487,-4137.600571,0.00016,2]
[325247260,1714647050502,-164.262955,0.00016,2]
[325247261,1714647050517,-151.0,0.00016,2]
[325247262,1714647050532,-222.449554,0.00016,2]
[325247263,1714647050547,-222.449554,0.00016,2]
[325247264,1714647050563,-1583.079521,0.00016,2]
[325247265,1714647050578,-1583.079521,0.00016,2]
[325247266,1714647050594,-151.0,0.00016,2]
[325247267,1714647050609,-151.0,0.00016,2]
[325247268,1714647050624,-582.47,0.0001604,2]
[325247269,1714647050640,-522.41,0.0001604,2]
[325247270,1714647050655,-301.47,0.0001604,2]
[325247271,1714647050671,-350.77,0.0001604,2]
[325247272,1714647050686,-162.99,0.0001604,2]
[325247273,1714647050700,-408.72404742,0.0001611,2]
[325247274,1714647050720,-1012.18489484,0.0001611,2]
[325247275,1714647050737,-258.17625557,0.0001611,2]
[325247276,1714647050752,-167.56442339,0.0001611,2]
[325247277,1714647050767,-1041.0025071,0.0001611,2]
[325247278,1714647050781,-1036.73785114,0.0001611,2]
[325247279,1714647050799,-37393.75485043,0.0001611,2]
[325247280,1714647050815,-592.34,0.00016152,2]
[325247281,1714647050829,-152.0,0.00016314,7]
[325247282,1714647050845,-198.04,0.00016469,2]
[325247283,1714647050861,-1224.55602433,0.000165,2]
[325247284,1714647050876,-598.41,0.00016539,2]
[325247285,1714647050892,-1000.0,0.000168,4]
[325247286,1714647050908,-152.0,0.000168,8]
[325247287,1714647050919,-169.8727095,0.000168,5]
[325247288,1714647050928,-152.0,0.000168,5]
[325247289,1714647050937,-150.0,0.00016849,5]
[325247290,1714647050946,-10000.0,0.000169,2]
[325247291,1714647050956,-19590.34951232,0.00017,2]
[325247292,1714647050966,-151.0,0.00017,2]
[325247293,1714647050975,-151.0,0.00017,2]
[325247294,1714647050986,-151.0,0.00017,2]
[325247295,1714647050996,-151.0,0.00017,2]
[325247296,1714647051234,-151.0,0.00017,2]
[325247297,1714647051354,-4137.600571,0.00017,2]
[325247298,1714647051372,-4137.600571,0.00017,2]
[325247299,1714647051382,-151.0,0.00017,2]
[325247300,1714647051392,-222.449554,0.00017,2]
[325247301,1714647051402,-222.449554,0.00017,2]
[325247302,1714647051411,-1583.079521,0.00017,2]
[325247303,1714647051420,-1583.079521,0.00017,2]
[325247304,1714647051430,-151.0,0.00017,2]
[325247305,1714647051439,-151.0,0.00017,2]
[325247306,1714647051449,-273.598362,0.00017129,2]
[325247307,1714647051460,-273.598362,0.00017129,2]
[325247308,1714647051469,-151.0,0.00017129,2]
[325247309,1714647051479,-192.650538,0.00017129,2]
[325247310,1714647051489,-163.636892,0.00017129,2]
[325247311,1714647051498,-431.546887,0.00017129,2]
[325247312,1714647051508,-287.697926,0.00017129,2]
[325247313,1714647051517,-1443.775864,0.00017129,2]
[325247314,1714647051527,-29308.189462,0.00017129,2]
[325247315,1714647051537,-888.927633,0.00017129,2]
[325247316,1714647051546,-401.031686,0.00017129,2]
[325247317,1714647051556,-401.04816,0.00017129,2]
[325247318,1714647051566,-16730.008779,0.00017129,2]
[325247319,1714647051576,-431.546887,0.00017343,2]
[325247320,1714647051586,-287.697926,0.00017343,2]
[325247321,1714647051595,-1443.775864,0.00017343,2]
[325247322,1714647051605,-29308.189462,0.00017343,2]
[325247323,1714647051614,-888.927633,0.00017343,2]
[325247324,1714647051623,-401.031686,0.00017343,2]
[325247325,1714647051633,-401.04816,0.00017343,2]
[325247326,1714647051643,-16730.008779,0.00017343,2]
[325247327,1714647051652,-273.598362,0.00017344,2]
[325247328,1714647051662,-273.598362,0.00017344,2]
[325247329,1714647051671,-151.0,0.00017344,2]
[325247330,1714647051681,-151.0,0.00017344,2]
[325247331,1714647051690,-151.0,0.00017344,2]
[325247332,1714647051699,-151.0,0.00017344,2]
[325247333,1714647051709,-151.0,0.00017344,2]
[325247334,1714647051718,-151.0,0.00017344,2]
[325247335,1714647051727,-4137.600571,0.00017344,2]
[325247336,1714647051739,-4137.600571,0.00017344,2]
[325247337,1714647051748,-151.0,0.00017344,2]
[325247338,1714647051758,-222.449554,0.00017344,2]
[325247339,1714647051768,-222.449554,0.00017344,2]
[325247340,1714647051778,-1583.079521,0.00017344,2]
[325247341,1714647051787,-1583.079521,0.00017344,2]
[325247342,1714647051796,-258.901971,0.00017344,2]
[325247343,1714647051806,-151.0,0.00017344,2]
[325247344,1714647051816,-5783.18231876,0.000174,2]
[325247345,1714647051825,-163.636892,0.00017415,2]
[325247346,1714647051835,-152.45,0.00017417,2]
[325247347,1714647051844,-163.69417388,0.00017473,2]
[325247348,1714647051853,-366.11,0.00017479,2]
[325247349,1714647051863,-163.69417388,0.00017548,2]
[325247350,1714647051872,-431.546887,0.00017558,2]
[325247351,1714647051881,-287.697926,0.00017558,2]
[325247352,1714647051890,-1443.775864,0.00017558,2]
[325247353,1714647051899,-29308.189462,0.00017558,2]
[325247354,1714647051908,-888.927633,0.00017558,2]
[325247355,1714647051918,-401.031686,0.00017558,2]
[325247356,1714647051927,-401.04816,0.00017558,2]
[325247357,1714647051937,-16730.008779,0.00017558,2]
[325247358,1714647051947,-151.0,0.00017558,2]
[325247359,1714647051957,-151.0,0.00017558,2]
[325247360,1714647051966,-151.0,0.00017558,2]
[325247361,1714647051976,-151.0,0.00017558,2]
[325247362,1714647051986,-203.768453,0.00017558,2]
[325247363,1714647051996,-4137.600571,0.00017558,2]
[325247364,1714647052006,-4137.600574,0.00017558,2]
[325247365,1714647052015,-151.0,0.00017558,2]
[325247366,1714647052024,-222.449554,0.00017558,2]
[325247367,1714647052034,-222.449546,0.00017558,2]
[325247368,1714647052043,-1583.079521,0.00017558,2]
[325247369,1714647052052,-1583.079513,0.00017558,2]
[325247370,1714647052062,-151.0,0.00017558,2]
[325247371,1714647052071,-592.34,0.0001762,2]
[325247372,1714647052081,-163.636892,0.000177,2]
[325247373,1714647052090,-431.546887,0.00017772,2]
[325247374,1714647052100,-287.697926,0.00017772,2]
[325247375,1714647052109,-1443.775864,0.00017772,2]
[325247376,1714647052118,-29308.189462,0.00017772,2]
[325247377,1714647052128,-888.927633,0.00017772,2]
[325247378,1714647052138,-401.031686,0.00017772,2]
[325247379,1714647052147,-401.04816,0.00017772,2]
[325247380,1714647052157,-16730.008779,0.00017772,2]
[325247381,1714647052167,-273.598362,0.00017772,2]
[325247382,1714647052177,-273.598362,0.00017772,2]
[325247383,1714647052187,-151.0,0.00017772,2]
[325247384,1714647052196,-9354.23754122,0.00017798,2]
[325247385,1714647052206,-1000.0,0.000178,5]
[325247386,1714647052216,-170.62940293,0.0001788,2]
[325247387,1714647052227,-11475.28111173,0.0001788,2]
[325247388,1714647052240,-170.62940292,0.0001788,2]
[325247389,1714647052250,-11475.28111171,0.0001788,2]
[325247390,1714647052260,-1722.72677,0.000179,2]
[325247391,1714647052272,-198.04,0.00017967,2]
[325247392,1714647052282,-163.636892,0.00017986,2]
[325247393,1714647052291,-431.546887,0.00017986,2]
[325247394,1714647052302,-287.697926,0.00017986,2]
[325247395,1714647052311,-1443.775864,0.00017986,2]
[325247396,1714647052321,-29308.189462,0.00017986,2]
[325247397,1714647052330,-888.927633,0.00017986,2]
[325247398,1714647052340,-401.031686,0.00017986,2]
[325247399,1714647052355,-401.04816,0.00017986,2]
[325247400,1714647052364,-16730.008779,0.00017986,2]
[325247401,1714647052374,-273.598362,0.00017986,2]
[325247402,1714647052383,-273.598367,0.00017986,2]
[325247403,1714647052392,-151.0,0.00017986,2]
[325247404,1714647052402,-598.41,0.00018043,2]
[325247405,1714647052411,-150.0,0.00018199,7]
[325247406,1714647052421,-200.0,0.00018291,2]
[325247407,1714647052431,-11475.28111171,0.00018378,2]
[325247408,1714647052440,-201.59,0.00018678,2]
[325247409,1714647052450,-947.3,0.00018678,2]
[325247410,1714647052459,-2500.0,0.00019122,2]
[325247411,1714647052469,-24780.51570598,0.00019178,2]
[325247412,1714647052478,-167.39,0.000192,2]
[325247413,1714647052494,-155.89,0.000192,2]
[325247414,1714647052503,-150.92,0.000192,2]
[325247415,1714647052513,-150.0,0.000195,2]
[325247416,1714647052523,-183.289681,0.00019529,2]
[325247417,1714647052533,-1953.750181,0.00019529,2]
[325247418,1714647052542,-7856.077208,0.00019529,2]
[325247419,1714647052551,-152.286841,0.00019529,2]
[325247420,1714647052562,-232.690245,0.00019529,2]
[325247421,1714647052572,-5258.846132,0.00019529,2]
[325247422,1714647052582,-213.198865,0.00019529,2]
[325247423,1714647052591,-17397.244439,0.00019529,2]
[325247424,1714647052600,-1752.948711,0.00019529,2]
[325247425,1714647052609,-193.908537,0.00019529,2]
[325247426,1714647052619,-152.286843,0.00019529,2]
[325247427,1714647052628,-152.286841,0.00019529,2]
[325247428,1714647052639,-193.908538,0.00019529,2]
[325247429,1714647052648,-1752.948711,0.00019529,2]
[325247430,1714647052657,-266.498585,0.00019529,2]
[325247431,1714647052667,-4349.31111,0.00019529,2]
[325247432,1714647052676,-192.650539,0.00019529,2]
[325247433,1714647052686,-161.590449,0.00019529,2]
[325247434,1714647052696,-167.049221,0.00019529,2]
[325247435,1714647052706,-523.638051,0.00019529,2]
[325247436,1714647052716,-150.0,0.00019549,7]
[325247437,1714647052726,-5783.18231876,0.000197,2]
[325247438,1714647052739,-1002.70023543,0.00019716,2]
[325247439,1714647052748,-150.0,0.00019728,2]
[325247440,1714647052758,-150.0,0.00019745,2]
[325247441,1714647052767,-150.0,0.00019762,2]
[325247442,1714647052777,-164.11269589,0.00019765,2]
[325247443,1714647052787,-1953.750181,0.00019773,2]
[325247444,1714647052796,-7856.077208,0.00019773,2]
[325247445,1714647052806,-232.690245,0.00019773,2]
[325247446,1714647052815,-5258.846132,0.00019773,2]
[325247447,1714647052825,-213.198865,0.00019773,2]
[325247448,1714647052835,-17397.244439,0.00019773,2]
[325247449,1714647052844,-1752.948711,0.00019773,2]
[325247450,1714647052854,-1752.948711,0.00019773,2]
[325247451,1714647052864,-4349.31111,0.00019773,2]
[325247452,1714647052874,-523.638051,0.00019773,2]
[325247453,1714647052884,-150.0,0.00019795,2]
[325247454,1714647052894,-150.0,0.00019798,2]
[325247455,1714647052904,-150.0,0.00019803,2]
[325247456,1714647052914,-150.0,0.00019804,2]
[325247457,1714647052924,-150.0,0.00019809,2]
[325247458,1714647052933,-13107.2599917,0.0001981,2]
[325247459,1714647052943,-150.0,0.00019822,2]
[325247460,1714647052953,-150.0,0.00019838,2]
[325247461,1714647052962,-150.0,0.00019847,2]
[325247462,1714647052972,-150.0,0.00019861,2]
[325247463,1714647052983,-150.0,0.00019862,2]
[325247464,1714647052993,-150.0,0.00019886,2]
[325247465,1714647053003,-150.0,0.00019899,2]
[325247466,1714647053012,-10007.75952349,0.000199,2]
[325247467,1714647053022,-150.0,0.00019917,2]
[325247468,1714647053031,-150.0,0.00019927,2]
[325247469,1714647053040,-150.0,0.00019967,2]
[325247470,1714647053050,-150.0,0.00019971,2]
[325247471,1714647053059,-50000.0,0.0002,2]
[325247472,1714647053068,-1768.2555451,0.0002,2]
[325247473,1714647053078,-626.26256473,0.0002,2]
[325247474,1714647053087,-1258.79778978,0.0002,2]
[325247475,1714647053096,-6224.87563104,0.0002,2]
[325247476,1714647053106,-860.17578703,0.0002,2]
[325247477,1714647053115,-5173.86583197,0.0002,2]
[325247478,1714647053125,-165.35004498,0.0002,2]
[325247479,1714647053135,-2000.0,0.0002,15]
[325247480,1714647053144,-2119.20851257,0.0002,2]
[325247481,1714647053153,-3991.52,0.0002,2]
[325247482,1714647053162,-186.24164303,0.0002,30]
[325247483,1714647053172,-500.0,0.0002,2]
[325247484,1714647053181,-200.0,0.0002,2]
[325247485,1714647053190,-150.0,0.0002,4]
[325247486,1714647053199,-150.0,0.0002,4]
[325247487,1714647053208,-150.0,0.0002,4]
[325247488,1714647053218,-150.0,0.0002,4]
[325247489,1714647053227,-150.0,0.0002,4]
[325247490,1714647053239,-150.0,0.0002,4]
[325247491,1714647053249,-157.27016002,0.0002,4]
[325247492,1714647053259,-150.0,0.0002,4]
[325247493,1714647053269,-156.4456218,0.0002,4]
[325247494,1714647053281,-152.286841,0.00020018,2]
[325247495,1714647053291,-1953.750181,0.00020018,2]
[325247496,1714647053301,-7856.077208,0.00020018,2]
[325247497,1714647053311,-232.690245,0.00020018,2]
[325247498,1714647053320,-5258.846132,0.00020018,2]
[325247499,1714647053329,-213.198865,0.00020018,2]
[325247500,1714647053339,-17397.244439,0.00020018,2]
[325247501,1714647053349,-1752.948711,0.00020018,2]
[325247502,1714647053358,-1752.948711,0.00020018,2]
[325247503,1714647053367,-4349.31111,0.00020018,2]
[325247504,1714647053376,-523.638051,0.00020018,2]
[325247505,1714647053386,-150.0,0.00020133,4]
[325247506,1714647053395,-9354.23754122,0.00020247,2]
[325247507,1714647053405,-1953.750181,0.00020262,2]
[325247508,1714647053414,-7856.077208,0.00020262,2]
[325247509,1714647053423,-232.690245,0.00020262,2]
[325247510,1714647053432,-5258.846132,0.00020262,2]
[325247511,1714647053441,-213.198865,0.00020262,2]
[325247512,1714647053451,-17397.244439,0.00020262,2]
[325247513,1714647053461,-1752.948711,0.00020262,2]
[325247514,1714647053470,-1752.948711,0.00020262,2]
[325247515,1714647053480,-4349.31111,0.00020262,2]
[325247516,1714647053490,-523.638051,0.00020262,2]
[325247517,1714647053499,-150.0,0.00020266,4]
[325247518,1714647053509,-150.0,0.00020311,4]
[325247519,1714647053518,-150.0,0.00020389,4]
[325247520,1714647053528,-150.0,0.00020399,4]
[325247521,1714647053537,-1600.0,0.00020463,7]
[325247522,1714647053546,-152.286841,0.00020506,2]
[325247523,1714647053556,-183.289681,0.00020506,2]
[325247524,1714647053567,-193.908537,0.00020506,2]
[325247525,1714647053576,-193.908538,0.00020506,2]
[325247526,1714647053586,-1953.750181,0.00020506,2]
[325247527,1714647053595,-7856.077208,0.00020506,2]
[325247528,1714647053604,-232.690245,0.00020506,2]
[325247529,1714647053614,-5258.846132,0.00020506,2]
[325247530,1714647053623,-213.198865,0.00020506,2]
[325247531,1714647053632,-17397.244439,0.00020506,2]
[325247532,1714647053641,-1752.948711,0.00020506,2]
[325247533,1714647053651,-1752.948711,0.00020506,2]
[325247534,1714647053660,-4349.31111,0.00020506,2]
[325247535,1714647053670,-523.638051,0.00020506,2]
[325247536,1714647053680,-150.0,0.00020532,4]
[325247537,1714647053690,-150.92,0.000206,2]
[325247538,1714647053700,-150.0,0.00020623,4]
[325247539,1714647053710,-150.0,0.00020665,4]
[325247540,1714647053719,-155.89,0.000207,2]
[325247541,1714647053729,-150.0,0.00020779,4]
[325247542,1714647053739,-150.0,0.00020798,4]
[325247543,1714647053748,-155.0,0.000209,2]
[325247544,1714647053758,-167.39,0.000209,2]
[325247545,1714647053767,-150.0,0.0002093,4]
[325247546,1714647053776,-150.0,0.00020934,4]
[325247547,1714647053786,-50000.0,0.00021,2]
[325247548,1714647053795,-716.17723846,0.00021,2]
[325247549,1714647053805,-1154.75115268,0.00021,2]
[325247550,1714647053814,-165931.57,0.00021,2]
[325247551,1714647053824,-150.0,0.00021063,4]
[325247552,1714647053833,-150.0,0.0002109,4]
[325247553,1714647053842,-170.62940292,0.00021166,2]
[325247554,1714647053852,-150.0,0.00021168,4]
[325247555,1714647053861,-150.0,0.00021196,4]
[325247556,1714647053871,-150.0,0.00021246,4]
[325247557,1714647053880,-150.0,0.00021329,4]
[325247558,1714647053889,-150.0,0.00021462,4]
[325247559,1714647053898,-150.0,0.00021557,4]
[325247560,1714647053908,-150.0,0.00021557,4]
[325247561,1714647053917,-150.0,0.00021595,4]
[325247562,1714647053927,-975.13,0.00021644,2]
[325247563,1714647053936,-150.0,0.00021728,4]
[325247564,1714647053946,-150.92,0.000218,2]
[325247565,1714647053955,-150.0,0.00021861,4]
[325247566,1714647053965,-150.0,0.00021869,4]
[325247567,1714647053974,-6755.06434201,0.000219,2]
[325247568,1714647053985,-1000.0,0.000219,2]
[325247569,1714647053995,-166.00732748,0.000219,2]
[325247570,1714647054004,-1000.0,0.00021917,2]
[325247571,1714647054014,-1000.0,0.00021917,2]
[325247572,1714647054024,-1000.0,0.00021917,2]
[325247573,1714647054034,-1030.06309716,0.00021917,2]
[325247574,1714647054043,-250.0,0.00021918,2]
[325247575,1714647054053,-2000.0,0.00021918,2]
[325247576,1714647054063,-150.0,0.00021946,4]
[325247577,1714647054073,-150.0,0.00021994,4]
[325247578,1714647054082,-50000.0,0.00022,2]
[325247579,1714647054092,-5783.18231876,0.00022,2]
[325247580,1714647054101,-150.0,0.00022127,4]
[325247581,1714647054111,-150.0,0.0002218,4]
[325247582,1714647054120,-150.0,0.0002218,4]
[325247583,1714647054129,-150.0,0.0002226,4]
[325247584,1714647054139,-150.0,0.00022336,4]
[325247585,1714647054148,-150.0,0.00022393,4]
[325247586,1714647054158,-150.0,0.00022491,4]
[325247587,1714647054167,-150.0,0.00022526,4]
[325247588,1714647054177,-150.0,0.00022659,4]
[325247589,1714647054186,-18863.1724326,0.00022681,7]
[325247590,1714647054195,-4699.03377155,0.00022681,7]
[325247591,1714647054205,-585.64667303,0.00022681,7]
[325247592,1714647054214,-9354.23754122,0.00022696,2]
[325247593,1714647054224,-150.0,0.00022725,4]
[325247594,1714647054235,-150.0,0.00022791,4]
[325247595,1714647054245,-150.0,0.00022803,4]
[325247596,1714647054254,-1722.72677,0.000229,2]
[325247597,1714647054266,-150.0,0.00022924,4]
[325247598,1714647054278,-50000.0,0.00023,3]
[325247599,1714647054287,-17686.11973703,0.00023,2]
[325247600,1714647054298,-150.0,0.00023057,4]
[325247601,1714647054308,-150.0,0.00023114,4]
[325247602,1714647054317,-150.0,0.00023114,4]
[325247603,1714647054326,-150.0,0.0002319,4]
[325247604,1714647054336,-150.0,0.0002327,4]
[325247605,1714647054346,-150.0,0.00023323,4]
[325247606,1714647054357,-163.69417388,0.0002334,2]
[325247607,1714647054366,-1999.82575251,0.000234,2]
[325247608,1714647054375,-150.0,0.00023426,4]
[325247609,1714647054384,-150.0,0.00023456,4]
[325247610,1714647054393,-150.0,0.00023504,4]
[325247611,1714647054402,-150.0,0.00023589,4]
[325247612,1714647054412,-150.0,0.00023633,4]
[325247613,1714647054421,-206.97,0.00023699,2]
[325247614,1714647054601,-167.39,0.000237,2]
[325247615,1714647054616,-150.0,0.00023722,4]
[325247616,1714647054626,-150.0,0.00023726,2]
[325247617,1714647054635,-150.0,0.00023726,2]
[325247618,1714647054645,-150.0,0.00023726,2]
[325247619,1714647054654,-150.0,0.00023726,2]
[325247620,1714647054663,-150.0,0.00023726,2]
[325247621,1714647054673,-150.0,0.00023737,4]
[325247622,1714647054683,-155.0,0.0002375,2]
[325247623,1714647054692,-150.0,0.00023855,4]
[325247624,1714647054702,-150.0,0.00023893,4]
[325247625,1714647054711,-210.0,0.000239,2]
[325247626,1714647054720,-150.0,0.00023988,4]
[325247627,1714647054729,-50000.0,0.00024,4]
[325247628,1714647054742,-155.0,0.00024,2]
[325247629,1714647054751,-431.93900284,0.00024,2]
[325247630,1714647054761,-150.0,0.00024049,4]
[325247631,1714647054771,-150.0,0.00024121,4]
[325247632,1714647054780,-150.0,0.00024254,4]
[325247633,1714647054790,-150.0,0.00024282,4]
[325247634,1714647054799,-5783.18231876,0.000243,2]
[325247635,1714647054809,-150.0,0.0002436,4]
[325247636,1714647054818,-150.0,0.0002436,4]
[325247637,1714647054828,-159.73881356,0.00024386,3]
[325247638,1714647054838,-150.0,0.00024387,4]
[325247639,1714647054848,-1600.0,0.00024463,7]
[325247640,1714647054859,-150.0,0.0002452,4]
[325247641,1714647054868,-150.0,0.00024652,4]
[325247642,1714647054878,-2242.35,0.00024657,2]
[325247643,1714647054889,-223.35,0.00024658,2]
[325247644,1714647054899,-201.182634,0.00024661,2]
[325247645,1714647054909,-150.0,0.00024671,4]
[325247646,1714647054919,-150.0,0.00024671,4]
[325247647,1714647054928,-1000.0,0.000247,2]
[325247648,1714647054938,-210.0,0.0002475,2]
[325247649,1714647054948,-150.0,0.00024785,4]
[325247650,1714647054958,-762.72,0.000249,4]
[325247651,1714647054967,-150.0,0.00024918,4]
[325247652,1714647054978,-150.0,0.00024983,4]
[325247653,1714647054989,-50000.0,0.00025,5]
[325247654,1714647054998,-2606.76124263,0.00025,2]
[325247655,1714647055008,-572.67268291,0.00025,7]
[325247656,1714647055018,-471.19309113,0.00025,2]
[325247657,1714647055028,-155.0,0.00025,2]
[325247658,1714647055037,-155.69407025,0.00025,2]
[325247659,1714647055047,-500.0,0.00025,2]
[325247660,1714647055056,-7546.0,0.00025,2]
[325247661,1714647055066,-5784.64157148,0.00025,7]
[325247662,1714647055075,-443.481164,0.00025,2]
[325247663,1714647055085,-293.29822192,0.00025,2]
[325247664,1714647055095,-2212.20569301,0.00025,2]
[325247665,1714647055104,-20000.0,0.00025,5]
[325247666,1714647055114,-152.86679,0.00025,4]
[325247667,1714647055123,-209.07671972,0.00025003,2]
[325247668,1714647055133,-1440.33776251,0.00025003,7]
[325247669,1714647055142,-150.0,0.00025051,4]
[325247670,1714647055152,-150.0,0.00025061,4]
[325247671,1714647055162,-9354.23754122,0.00025145,2]
[325247672,1714647055171,-150.0,0.00025184,4]
[325247673,1714647055181,-150.0,0.00025294,4]
[325247674,1714647055190,-150.0,0.00025317,4]
[325247675,1714647055199,-170.62940292,0.0002535,2]
[325247676,1714647055209,-150.0,0.00025372,120]
[325247677,1714647055219,-150.0,0.0002545,4]